[Event "3rd Perez Open 2024"]
[Site "Santa Fe"]
[Date "2024.02.25"]
[Round "5.4"]
[White "Carrizo, Luciano Ariel"]
[Black "Acosta, Pablo Ismael"]
[Result "1/2-1/2"]
[ECO "C07"]
[WhiteElo "2170"]
[BlackElo "2479"]
[Annotator "RC"]
[PlyCount "127"]
[EventDate "2024.02.18"]
[EventType "swiss"]
[EventCountry "ARG"]
[SourceTitle "playchess.com"]
[Source "ChessBase"]
[SourceQuality "1"]
[TimeControl "5400+30"]

1. e4 {[%emt 0:00:03]} e6 {[%emt 0:00:28]} 2. d4 {[%emt 0:00:46]} d5 {[%emt 0:00:06]} 3. Nd2 {[%emt 0:00:10]} c5 {[%emt 0:00:18]} 4. exd5 {[%emt 0:02:06]} Qxd5 {[%emt 0:00:23]} 5. Ngf3 {[%emt 0:00:06]} cxd4 {[%emt 0:00:05]} 6. Bc4 {[%emt 0:00:18]} Qd7 {[%emt 0:00:29]} 7. O-O {[%emt 0:00:33]} a6 {[%emt 0:02:25]} 8. Nb3 {[%emt 0:00:18]} b5 {[%emt 0:00:49]} 9. Bd3 {[%emt 0:03:19]} Nc6 {[%emt 0:02:11]} 10. Nbxd4 {[%emt 0:02:01]} Nxd4 {[%emt 0:00:29]} 11. Nxd4 {[%emt 0:00:10]} Bb7 {[%emt 0:00:09]} 12. Re1 {[%emt 0:01:37]} Nf6 {[%emt 0:00:37]} 13. c3 {[%emt 0:20:13]} Rd8 {[%emt 0:08:18]} 14. Bc2 {[%emt 0:04:09]} Qd5 {[%emt 0:02:11]} 15. f3 {[%emt 0:02:20]} Bc5 {[%emt 0:00:31]} 16. Be3 {[%emt 0:00:56]} O-O {[%emt 0:04:06]} 17. Qe2 {[%emt 0:19:38]} Qh5 {[%emt 0:01:21]} 18. Nf5 {[%emt 0:05:47]} Bxe3+ {[%emt 0:04:26]} 19. Nxe3 {[%emt 0:00:03]} Qc5 {[%emt 0:01:06]} 20. Kh1 {[%emt 0:00:59]} Nh5 {[%emt 0:03:44]} 21. Rad1 {[%emt 0:03:19]} Nf4 {[%emt 0:02:53]} 22. Qf2 {[%emt 0:00:25]} h6 {[%emt 0:04:14]} 23. Rd2 {[%emt 0:04:45]} Rxd2 {[%emt 0:08:51]} 24. Qxd2 {[%emt 0:00:11]} Qg5 {[%emt 0:01:00]} 25. Rd1 {[%emt 0:01:47]} h5 {[%emt 0:00:24]} 26. Be4 {[%emt 0:18:03]} Bxe4 {[%emt 0:01:39]} 27. fxe4 {[%emt 0:00:02]} h4 {[%emt 0:00:25]} 28. h3 {[%emt 0:00:47]} Nh5 {[%emt 0:04:13]} 29. Nf1 {[%emt 0:02:38]} Qg6 {[%emt 0:01:31]} 30. Qe1 {[%emt 0:01:13]} Qg5 {[%emt 0:01:32]} 31. Qd2 {[%emt 0:02:05]} Qf6 {[%emt 0:01:44]} 32. Kg1 {[%emt 0:01:19]} Rc8 {[%emt 0:01:29]} 33. Qd7 {[%emt 0:02:07]} Rc4 {[%emt 0:01:48]} 34. Nd2 {[%emt 0:00:59]} Rc5 {[%emt 0:01:57]} 35. Nf3 {[%emt 0:00:21]} Kh7 {[%emt 0:01:36]} 36. e5 {[%emt 0:02:12]} Qf4 {[%emt 0:03:33]} 37. Rd4 {[%emt 0:00:15]} Qe3+ {[%emt 0:02:23]} 38. Kh2 {[%emt 0:00:01]} Rxe5 {[%emt 0:00:22]} 39. Nxe5 {[%emt 0:01:19]} Qxe5+ {[%emt 0:00:17]} 40. Kg1 {[%emt 0:00:17]} Qe1+ {[%emt 0:02:07]} 41. Kh2 {[%emt 0:00:01]} Qg3+ {[%emt 0:00:19]} 42. Kh1 {[%emt 0:00:44]} Qe1+ {[%emt 0:04:06]} 43. Kh2 {[%emt 0:00:01]} Nf4 {[%emt 0:01:25]} 44. Rd2 {[%emt 0:00:37]} e5 {[%emt 0:04:10]} 45. Qf5+ {[%emt 0:00:53]} Kh6 {[%emt 0:00:11]} 46. Qc2 {[%emt 0:01:01]} e4 {[%emt 0:01:14]} 47. Rd6+ {[%emt 0:00:33]} g6 {[%emt 0:00:53]} 48. Rd1 {[%emt 0:00:30]} Qg3+ {[%emt 0:00:22]} 49. Kh1 {[%emt 0:00:01]} e3 {[%emt 0:00:43]} 50. Rg1 {[%emt 0:00:59]} f5 {[%emt 0:00:45]} 51. c4 {[%emt 0:00:27]} e2 {[%emt 0:01:20]} 52. Qd2 {[%emt 0:00:07]} Qf2 {[%emt 0:03:37]} 53. c5 {[%emt 0:00:52]} Kh5 {[%emt 0:00:42]} 54. Qc3 {[%emt 0:00:19]} Nxg2 {[%emt 0:04:46]} 55. Qh8+ {[%emt 0:00:26]} Kg5 {[%emt 0:00:06]} 56. Qd8+ {[%emt 0:00:31]} Kh5 {[%emt 0:05:18]} 57. Qh8+ {[%emt 0:00:03]} Kg5 {[%emt 0:00:04]} 58. Qd8+ {[%emt 0:00:03]} Kf4 {[%emt 0:01:06]} 59. Qd6+ {[%emt 0:00:02]} Ke4 {[%emt 0:03:03]} 60. Qe6+ {[%emt 0:00:34]} Kd4 {[%emt 0:00:23]} 61. Qd6+ {[%emt 0:00:15]} Ke4 {[%emt 0:00:23]} 62. Qe6+ {[%emt 0:00:05]} Kf4 {[%emt 0:01:25]} 63. Qd6+ {[%emt 0:00:05]} Ke4 {[%emt 0:01:13]} 64. Qe6+ {[%emt 0:03:44]} 1/2-1/2

[Event "3rd Perez Open 2024"]
[Site "Santa Fe"]
[Date "2024.02.25"]
[Round "5.5"]
[White "Acosta, Franco Emanuel"]
[Black "Perez, Maximiliano"]
[Result "1/2-1/2"]
[ECO "B07"]
[WhiteElo "2098"]
[BlackElo "2383"]
[Annotator "RC"]
[PlyCount "165"]
[EventDate "2024.02.18"]
[EventType "swiss"]
[EventCountry "ARG"]
[SourceTitle "playchess.com"]
[Source "ChessBase"]
[SourceQuality "1"]
[TimeControl "5400+30"]

1. e4 {[%emt 0:01:49]} d6 {[%emt 0:04:39]} 2. d4 {[%emt 0:00:49]} Nf6 {[%emt 0:00:09]} 3. Nc3 {[%emt 0:00:05]} c6 {[%emt 0:00:16]} 4. f3 {[%emt 0:00:52]} g6 {[%emt 0:03:04]} 5. Be3 {[%emt 0:00:18]} b5 {[%emt 0:00:09]} 6. Qd2 {[%emt 0:00:47]} Nbd7 {[%emt 0:00:08]} 7. g4 {[%emt 0:02:26]} Nb6 {[%emt 0:00:02]} 8. g5 {[%emt 0:02:42]} Nfd7 {[%emt 0:00:16]} 9. d5 {[%emt 0:10:25]} c5 {[%emt 0:51:50]} 10. Bxb5 {[%emt 0:31:50]} Bg7 {[%emt 0:00:47]} 11. f4 {[%emt 0:02:14]} Rb8 {[%emt 0:00:09]} 12. Nf3 {[%emt 0:06:01]} a6 {[%emt 0:01:14]} 13. Be2 {[%emt 0:05:53]} Na8 {[%emt 0:00:19]} 14. Nd1 {[%emt 0:02:02]} O-O {[%emt 0:00:44]} 15. c4 {[%emt 0:07:00]} f5 {[%emt 0:03:48]} 16. exf5 {[%emt 0:00:13]} Rxf5 {[%emt 0:00:02]} 17. Bd3 {[%emt 0:00:24]} Ndb6 {[%emt 0:02:58]} 18. h4 {[%emt 0:07:38]} e5 {[%emt 0:00:12]} 19. Bxf5 {[%emt 0:05:44]} Bxf5 {[%emt 0:01:20]} 20. Rc1 {[%emt 0:00:15]} exf4 {[%emt 0:00:29]} 21. Bxf4 {[%emt 0:00:35]} Qd7 {[%emt 0:04:48]} 22. b3 {[%emt 0:00:39]} Be4 {[%emt 0:02:13]} 23. Kf2 {[%emt 0:06:56]} Rf8 {[%emt 0:03:49]} 24. Nc3 {[%emt 0:00:27]} Bxc3 {[%emt 0:02:31]} 25. Rxc3 {[%emt 0:00:04]} Qg4 {[%emt 0:00:11]} 26. Rg1 {[%emt 0:00:22]} Qxf4 {[%emt 0:00:07]} 27. Qxf4 {[%emt 0:00:22]} Rxf4 {[%emt 0:00:02]} 28. Kg3 {[%emt 0:00:16]} Rxf3+ {[%emt 0:00:49]} 29. Rxf3 {[%emt 0:00:05]} Bxf3 {[%emt 0:00:05]} 30. Kxf3 {[%emt 0:00:04]} Nd7 {[%emt 0:00:57]} 31. Re1 {[%emt 0:01:47]} Ne5+ {[%emt 0:06:29]} 32. Rxe5 {[%emt 0:00:55]} dxe5 {[%emt 0:00:07]} 33. Ke4 {[%emt 0:00:02]} Kf7 {[%emt 0:00:38]} 34. Kxe5 {[%emt 0:00:04]} Ke7 {[%emt 0:00:16]} 35. d6+ {[%emt 0:00:04]} Kd7 {[%emt 0:00:09]} 36. Kd5 {[%emt 0:04:04]} Nb6+ {[%emt 0:00:07]} 37. Kxc5 {[%emt 0:00:04]} Nc8 {[%emt 0:00:10]} 38. a3 {[%emt 0:01:06]} a5 {[%emt 0:04:46]} 39. Kb5 {[%emt 0:00:35]} Nxd6+ {[%emt 0:00:07]} 40. Kxa5 {[%emt 0:00:08]} Nf5 {[%emt 0:07:15]} 41. Kb6 {[%emt 0:00:31]} Nxh4 {[%emt 0:01:35]} 42. Kb7 {[%emt 0:00:47]} Nf3 {[%emt 0:00:05]} 43. c5 {[%emt 0:01:01]} Nxg5 {[%emt 0:00:04]} 44. c6+ {[%emt 0:00:14]} Ke7 {[%emt 0:00:08]} 45. c7 {[%emt 0:01:18]} Nf7 {[%emt 0:01:16]} 46. c8=N+ {[%emt 0:00:33]} Ke6 {[%emt 0:00:24]} 47. a4 {[%emt 0:00:42]} h5 {[%emt 0:00:42]} 48. a5 {[%emt 0:00:04]} h4 {[%emt 0:00:06]} 49. a6 {[%emt 0:00:12]} h3 {[%emt 0:00:10]} 50. a7 {[%emt 0:00:28]} h2 {[%emt 0:00:30]} 51. a8=Q {[%emt 0:00:09]} h1=Q+ {[%emt 0:00:21]} 52. Ka7 {[%emt 0:01:41]} Qa1+ {[%emt 0:00:58]} 53. Kb8 {[%emt 0:00:28]} Qe5+ {[%emt 0:00:58]} 54. Ka7 {[%emt 0:00:22]} Qa5+ {[%emt 0:01:22]} 55. Kb8 {[%emt 0:00:20]} Qxa8+ {[%emt 0:00:30]} 56. Kxa8 {[%emt 0:00:06]} g5 {[%emt 0:00:03]} 57. Nb6 {[%emt 0:01:12]} Ne5 {[%emt 0:00:39]} 58. Na4 {[%emt 0:00:36]} g4 {[%emt 0:00:05]} 59. Nc3 {[%emt 0:00:24]} Nc6 {[%emt 0:00:52]} 60. Ne2 {[%emt 0:00:23]} Ke5 {[%emt 0:00:51]} 61. Ng3 {[%emt 0:00:21]} Kf4 {[%emt 0:00:07]} 62. Nh5+ {[%emt 0:00:11]} Kf3 {[%emt 0:00:11]} 63. Kb7 {[%emt 0:00:56]} Na5+ {[%emt 0:00:25]} 64. Kc7 {[%emt 0:00:41]} Nxb3 {[%emt 0:00:05]} 65. Kd6 {[%emt 0:00:11]} Nd4 {[%emt 0:01:18]} 66. Ke5 {[%emt 0:00:22]} Ne2 {[%emt 0:00:01]} 67. Ng7 {[%emt 0:00:42]} Ng3 {[%emt 0:01:06]} 68. Kd4 {[%emt 0:00:36]} Ne4 {[%emt 0:00:29]} 69. Ke5 {[%emt 0:00:39]} Ng5 {[%emt 0:00:38]} 70. Nh5 {[%emt 0:00:31]} Ne4 {[%emt 0:00:39]} 71. Ng7 {[%emt 0:00:21]} Nf2 {[%emt 0:00:13]} 72. Kd4 {[%emt 0:00:33]} Kf4 {[%emt 0:00:33]} 73. Nh5+ {[%emt 0:00:21]} Kg5 {[%emt 0:00:01]} 74. Ng3 {[%emt 0:00:14]} Kh4 {[%emt 0:00:07]} 75. Nf5+ {[%emt 0:00:23]} Kh3 {[%emt 0:00:02]} 76. Ke3 {[%emt 0:00:28]} Nd1+ {[%emt 0:00:30]} 77. Ke2 {[%emt 0:00:31]} Nc3+ {[%emt 0:00:01]} 78. Kd3 {[%emt 0:00:21]} Nd5 {[%emt 0:00:06]} 79. Ke4 {[%emt 0:00:27]} Ne7 {[%emt 0:00:25]} 80. Nxe7 {[%emt 0:00:29]} g3 {[%emt 0:00:03]} 81. Nd5 {[%emt 0:00:05]} g2 {[%emt 0:00:05]} 82. Nf4+ {[%emt 0:00:03]} Kh2 {[%emt 0:00:04]} 83. Nxg2 {[%emt 0:00:03]} 1/2-1/2

[Event "3rd Perez Open 2024"]
[Site "Santa Fe"]
[Date "2024.02.25"]
[Round "5.6"]
[White "Alvarez, Leandro"]
[Black "Zapata Charles, Santiago"]
[Result "1-0"]
[ECO "D01"]
[WhiteElo "2103"]
[BlackElo "2300"]
[Annotator "TA"]
[PlyCount "125"]
[EventDate "2024.02.18"]
[EventType "swiss"]
[EventCountry "ARG"]
[SourceTitle "playchess.com"]
[Source "ChessBase"]
[SourceQuality "1"]
[TimeControl "5400+30"]

{[%evp 25,125,0,0,-9,-17,-12,-12,-18,-10,-31,0,-12,0,0,3,0,2,0,0,-6,6,-6,10,-25,-30,-54,0,-25,0,-18,0,0,0,-95,6,0,0,0,0,-1,0,0,0,0,7,3,5,0,0,0,0,0,0,0,0,0,0,0,0,0,0,0,22,8,49,0,0,0,0,0,118,118,168,137,184,439,439,439,439,439,439,118,118,0,371,118,454,118,794,538,29974,29975,29986,29987,29987,29988,29988,29989,29989,29990,29990,29991]} 1. d4 {[%emt 0:37:50]} d5 {[%emt 0:00:11]} 2. Nf3 {[%emt 0:00:30]} Nf6 {[%emt 0:00:10]} 3. Bg5 {[%emt 0:00:51]} c6 {[%emt 0:03:30]} 4. Nc3 {[%emt 0:02:55]} Bf5 {[%emt 0:04:46]} 5. e3 {[%emt 0:01:29]} Nbd7 {[%emt 0:02:17]} 6. Bd3 {[%emt 0:01:22] D01: Damenbauernspiele (Richter-Weressow).} Bxd3 {[%emt 0:00:33]} 7. Qxd3 {[%emt 0:01:07]} e6 {[%emt 0:01:18]} 8. Ne5 {[%emt 0:19:39]} Qa5 {[%emt 0:07:54]} 9. Bxf6 {[%emt 0:01:28]} Nxf6 {[%emt 0:00:12]} 10. O-O {[%emt 0:00:08]} Bd6 {[%emt 0:02:29]} 11. f4 {[%emt 0:01:00]} Qc7 $146 {[%emt 0:09:02]} ({Predecessor:} 11... O-O 12. Rf3 c5 13. Rh3 c4 14. Qe2 Qb6 15. Nd1 Rfd8 16. c3 Qc7 17. g4 Nd7 {½-½ Lacha,J (1861)-Vlckova,K (1885) Janske Lazne op 2013 (2)}) 12. Rf3 {[%emt 0:05:53]} Nd7 {[%emt 0:03:06]} 13. e4 {[%emt 0:02:07]} O-O {[%emt 0:29:49]} 14. Nxd7 {[%emt 0:01:22]} Qxd7 {[%emt 0:00:01]} 15. e5 {[%emt 0:00:08]} Be7 {[%emt 0:00:37]} 16. Rh3 {[%emt 0:03:49]} g6 {[%emt 0:00:34]} 17. Rf1 {[%emt 0:08:46]} f5 {[%emt 0:01:10]} 18. exf6 {[%emt 0:02:04]} Bxf6 {[%emt 0:00:21]} 19. Ne2 {[%emt 0:04:02]} Qd6 {[%emt 0:01:28]} 20. c3 {[%emt 0:01:40]} c5 {[%emt 0:01:40]} 21. dxc5 {[%emt 0:01:38]} Qxc5+ {[%emt 0:00:02]} 22. Qe3 {[%emt 0:00:19]} Qd6 {[%emt 0:01:47]} 23. Nd4 {[%emt 0:00:52]} Rae8 {[%emt 0:00:56]} 24. Nf3 {[%emt 0:00:51]} Qa6 {[%emt 0:01:43]} 25. a3 {[%emt 0:00:32]} Qb5 {[%emt 0:07:26]} (25... Bd8 $15 26. Re1 Qb6) 26. Qd2 {[%emt 0:00:12]} Qc4 {[%emt 0:02:42]} 27. Rd1 {[%emt 0:00:34]} Qe4 {[%emt 0:03:37]} 28. Re1 {[%emt 0:00:48]} Qf5 {[%emt 0:00:17]} 29. Rg3 {[%emt 0:00:32] [#]} (29. Ng5 $11 Bd8 30. Rh4 (30. Nxh7 $2 Qxf4 31. Qe2 Rf7 $19)) 29... Bg7 {[%emt 0:02:00]} (29... Bd8 $1 $17 30. Nd4 Qxf4 31. Qxf4 Rxf4) 30. Ng5 {[%emt 0:00:28]} Qxf4 {[%emt 0:00:56]} 31. Qxf4 {[%emt 0:00:09]} Rxf4 {[%emt 0:00:19]} 32. Rxe6 {[%emt 0:00:15]} Ref8 {[%emt 0:01:38]} 33. Rf3 {[%emt 0:00:44]} d4 {[%emt 0:02:48]} 34. Rxf4 {[%emt 0:00:01]} Rxf4 {[%emt 0:00:05]} 35. Re8+ {[%emt 0:00:16]} Rf8 {[%emt 0:02:23]} 36. Rxf8+ {[%emt 0:00:09]} Bxf8 {[%emt 0:00:01]} 37. cxd4 {[%emt 0:00:10]} Bh6 {[%emt 0:00:07]} 38. h4 {[%emt 0:00:30]} Bg7 $1 {[%emt 0:00:03]} 39. Nf3 {[%emt 0:00:08]} Kf7 $1 {[%emt 0:00:12]} 40. Kf2 {[%emt 0:00:01]} Ke6 {[%emt 0:00:09]} 41. Ke3 {[%emt 0:01:07]} Kd5 {[%emt 0:00:01]} 42. a4 {[%emt 0:01:10]} h5 {[%emt 0:02:27]} 43. Kd3 {[%emt 0:00:38]} a6 {[%emt 0:01:12]} 44. a5 {[%emt 0:01:07]} Bf6 {[%emt 0:00:18]} 45. b4 {[%emt 0:00:40]} (45. b3 $14) 45... Bd8 $11 {[%emt 0:02:00]} 46. Ne5 {[%emt 0:00:28]} Bxh4 {[%emt 0:00:52]} 47. Nxg6 {[%emt 0:00:01]} Be1 {[%emt 0:00:22]} (47... Bg5 $11 {bleibt in der Remisbreite.}) 48. Nf4+ $16 {[%emt 0:00:20]} Kd6 {[%emt 0:00:03] [#]} (48... Kc6 $16 {kämpft weiter.}) 49. Kc4 $1 $18 {[%emt 0:00:04]} (49. Nxh5 Bxb4 50. g4 Bxa5 $11) 49... h4 {[%emt 0:00:25]} 50. Nd3 {[%emt 0:00:10]} Bg3 {[%emt 0:01:05]} 51. Nc5 {[%emt 0:00:06]} Kc6 {[%emt 0:00:18]} 52. d5+ {[%emt 0:00:27]} Kc7 {[%emt 0:00:01]} 53. Ne6+ $2 {[%emt 0:00:45]} (53. b5 $18 axb5+ 54. Kxb5) 53... Kd6 $16 {[%emt 0:00:29]} 54. Nc5 $2 {[%emt 0:00:27][%mdl 8192]} (54. Ng5 $16 {Weiss will mit Ne4+ Matt setzen.} Bh2 55. Ne4+ Kd7 56. Nc5+ Kc7 57. Ne6+ Kd7 58. Ng5) 54... Kc7 $18 {[%emt 0:00:02]} 55. Kd4 $2 {[%emt 0:00:09]} (55. b5 $18 {ist der präzise Gewinnweg.} axb5+ 56. Kxb5) 55... b6 $2 {[%emt 0:03:09][%mdl 8192]} (55... Be1 $16 {leistet mehr Widerstand.}) 56. Ne4 $2 {[%emt 0:01:45]} (56. Nxa6+ $18 Kb7 57. b5 bxa5 58. Nc5+ Kb6 59. Kc4) 56... Be1 $2 {[%emt 0:00:34][%mdl 8192]} (56... Bf4 $16 57. Kc3 Kb7) 57. b5 $18 {[%emt 0:01:11]} bxa5 {[%emt 0:01:48]} 58. d6+ {[%emt 0:00:02]} Kb6 {[%emt 0:02:27]} 59. d7 {[%emt 0:00:23]} Kc7 {[%emt 0:00:25]} 60. bxa6 {[%emt 0:00:02]} h3 {[%emt 0:00:17]} 61. a7 {[%emt 0:00:39]} hxg2 {[%emt 0:00:18]} 62. d8=Q+ {[%emt 0:00:11]} (62. a8=B g1=Q+ (62... g1=R $2 63. Kc4 $19) 63. Kd3 Qg8 $19 (63... Kxd7 $2 64. Bd5 $19)) 62... Kxd8 {[%emt 0:00:06]} 63. a8=Q+ {[%emt 0:00:04]} (63. a8=B $2 {ist das falsche Schlagen.} g1=Q+ (63... g1=B+ 64. Kc4 $11) 64. Ke5 a4 $19) 1-0

[Event "3rd Perez Open 2024"]
[Site "Santa Fe"]
[Date "2024.02.25"]
[Round "6.1"]
[White "Spata, German"]
[Black "Flores, Diego"]
[Result "1/2-1/2"]
[ECO "E11"]
[WhiteElo "2399"]
[BlackElo "2526"]
[Annotator "ChessBase"]
[PlyCount "28"]
[EventDate "2024.02.18"]
[EventType "swiss"]
[EventCountry "ARG"]
[SourceTitle "playchess.com"]
[Source "ChessBase"]
[SourceQuality "1"]
[TimeControl "5400+30"]

1. d4 {[%emt 0:05:14]} Nf6 {[%emt 0:00:09]} 2. c4 {[%emt 0:01:27]} e6 {[%emt 0:00:28]} 3. Nf3 {[%emt 0:02:50]} d5 {[%emt 0:02:04]} 4. g3 {[%emt 0:06:15]} Bb4+ {[%emt 0:03:00]} 5. Bd2 {[%emt 0:00:11]} a5 {[%emt 0:00:52]} 6. Qc2 {[%emt 0:02:47]} O-O {[%emt 0:01:46]} 7. Bg2 {[%emt 0:01:26]} c5 {[%emt 0:01:17]} 8. cxd5 {[%emt 0:01:08]} cxd4 {[%emt 0:00:24]} 9. Nxd4 {[%emt 0:01:12]} Qb6 {[%emt 0:00:17]} 10. e3 {[%emt 0:00:36]} exd5 {[%emt 0:00:31]} 11. O-O {[%emt 0:00:37]} Nc6 {[%emt 0:00:23]} 12. Bc3 {[%emt 0:00:20]} Bxc3 {[%emt 1:25:19]} 13. Nxc3 {[%emt 1:12:57]} Nxd4 14. exd4 Be6 {[%emt 0:01:00]} 1/2-1/2

[Event "3rd Perez Open 2024"]
[Site "Santa Fe"]
[Date "2024.02.25"]
[Round "6.2"]
[White "Rodriguez Vila, Andres"]
[Black "Asprelli, Gaspar"]
[Result "0-1"]
[ECO "C02"]
[WhiteElo "2407"]
[BlackElo "2226"]
[Annotator "RC"]
[PlyCount "148"]
[EventDate "2024.02.18"]
[EventType "swiss"]
[EventCountry "ARG"]
[SourceTitle "playchess.com"]
[Source "ChessBase"]
[SourceQuality "1"]
[TimeControl "5400+30"]

1. e4 {[%emt 0:05:15]} c5 {[%emt 0:00:37]} 2. d4 {[%emt 0:00:41]} cxd4 {[%emt 0:02:34]} 3. c3 {[%emt 0:00:05]} e6 {[%emt 0:02:49]} 4. cxd4 {[%emt 0:00:05]} d5 {[%emt 0:00:04]} 5. e5 {[%emt 0:00:08]} Nc6 {[%emt 0:00:08]} 6. Nf3 {[%emt 0:00:06]} Nge7 {[%emt 0:01:12]} 7. Nc3 {[%emt 0:00:50]} Nf5 {[%emt 0:01:41]} 8. a3 {[%emt 0:00:19]} Bd7 {[%emt 0:04:05]} 9. Be2 {[%emt 0:00:32]} Rc8 {[%emt 0:00:48]} 10. O-O {[%emt 0:02:03]} Be7 {[%emt 0:01:38]} 11. g4 {[%emt 0:02:21]} Nh4 {[%emt 0:03:13]} 12. Nxh4 {[%emt 0:00:24]} Bxh4 {[%emt 0:00:06]} 13. Be3 {[%emt 0:00:03]} Be7 {[%emt 0:04:24]} 14. f4 {[%emt 0:00:40]} f6 {[%emt 0:12:44]} 15. exf6 {[%emt 0:04:48]} Bxf6 {[%emt 0:00:30]} 16. g5 {[%emt 0:00:05]} Be7 {[%emt 0:00:08]} 17. Bd3 {[%emt 0:00:08]} g6 {[%emt 0:04:03]} 18. h4 {[%emt 0:06:29]} Bd6 {[%emt 0:04:27]} 19. h5 {[%emt 0:03:46]} Ne7 {[%emt 0:01:03]} 20. Qf3 {[%emt 0:00:05]} Qb6 {[%emt 0:06:23]} 21. Rf2 {[%emt 0:00:51]} Kd8 {[%emt 0:03:11]} 22. Rc1 {[%emt 0:02:53]} Rc7 {[%emt 0:01:46]} 23. Qh1 {[%emt 0:02:15]} Rg8 {[%emt 0:03:53]} 24. hxg6 {[%emt 0:00:16]} hxg6 {[%emt 0:00:19]} 25. Qh7 {[%emt 0:11:14]} Kc8 {[%emt 0:09:07]} 26. Rfc2 {[%emt 0:00:13]} Kb8 {[%emt 0:01:12]} 27. Na4 {[%emt 0:02:11]} Bxa4 {[%emt 0:00:44]} 28. Rxc7 {[%emt 0:00:08]} Bxc7 {[%emt 0:00:26]} 29. Qxe7 {[%emt 0:00:07]} a6 {[%emt 0:05:21]} 30. b4 {[%emt 0:02:40]} Bd6 {[%emt 0:04:34]} 31. Qxe6 {[%emt 0:03:44]} Re8 {[%emt 0:02:19]} 32. Qh3 {[%emt 0:00:05]} Bd7 {[%emt 0:08:33]} 33. Qg3 {[%emt 0:04:17]} Ka7 {[%emt 0:01:26]} 34. Bb1 {[%emt 0:10:16]} Bb8 {[%emt 0:02:16]} 35. Re1 {[%emt 0:02:09]} Rh8 {[%emt 0:00:59]} 36. Qg2 {[%emt 0:01:19]} Qd6 {[%emt 0:02:18]} 37. Ba2 {[%emt 0:04:08]} Be6 {[%emt 0:00:14]} 38. Qc2 {[%emt 0:00:51]} Bf5 {[%emt 0:02:07]} 39. Qc5+ {[%emt 0:05:03]} Qxc5 {[%emt 0:00:07]} 40. dxc5 {[%emt 0:00:04]} Be4 {[%emt 0:00:06]} 41. Re2 {[%emt 0:03:43]} Rh4 {[%emt 0:00:39]} 42. c6+ {[%emt 0:07:33]} Ka8 {[%emt 0:00:40]} 43. cxb7+ {[%emt 0:00:04]} Kxb7 {[%emt 0:00:09]} 44. Rh2 {[%emt 0:00:07]} Rg4+ {[%emt 0:00:48]} 45. Kf2 {[%emt 0:00:29]} Bxf4 {[%emt 0:01:05]} 46. Bxf4 {[%emt 0:00:20]} Rxf4+ {[%emt 0:00:05]} 47. Ke3 {[%emt 0:00:06]} Rf3+ {[%emt 0:00:34]} 48. Kd4 {[%emt 0:00:06]} Rxa3 {[%emt 0:00:32]} 49. Bxd5+ {[%emt 0:05:38]} Bxd5 {[%emt 0:00:07]} 50. Kxd5 {[%emt 0:00:05]} Rg3 {[%emt 0:00:18]} 51. Rh8 {[%emt 0:00:09]} Rxg5+ {[%emt 0:00:18]} 52. Kc4 {[%emt 0:00:03]} Rg1 {[%emt 0:01:55]} 53. Rg8 {[%emt 0:00:24]} Rc1+ {[%emt 0:01:30]} 54. Kd4 {[%emt 0:03:48]} Rc6 {[%emt 0:01:25]} 55. Kd5 {[%emt 0:00:03]} Rf6 {[%emt 0:00:40]} 56. Kc5 {[%emt 0:00:17]} Kc7 {[%emt 0:01:23]} 57. Rg7+ {[%emt 0:01:19]} Kd8 {[%emt 0:00:14]} 58. b5 {[%emt 0:00:23]} axb5 {[%emt 0:00:07]} 59. Kxb5 {[%emt 0:00:05]} Ke8 {[%emt 0:00:24]} 60. Kc5 {[%emt 0:00:08]} Kf8 {[%emt 0:00:27]} 61. Ra7 {[%emt 0:01:06]} Rf7 {[%emt 0:00:34]} 62. Ra8+ {[%emt 0:00:26]} Kg7 {[%emt 0:00:11]} 63. Kd6 {[%emt 0:00:04]} g5 {[%emt 0:00:34]} 64. Ke5 {[%emt 0:01:07]} Kg6 {[%emt 0:00:34]} 65. Ke4 {[%emt 0:00:23]} Kh5 {[%emt 0:00:49]} 66. Ke3 {[%emt 0:04:07]} Kh4 {[%emt 0:00:18]} 67. Ke2 {[%emt 0:02:20]} g4 {[%emt 0:00:33]} 68. Ra1 {[%emt 0:00:44]} Kh3 {[%emt 0:00:45]} 69. Ra4 {[%emt 0:02:03]} g3 {[%emt 0:00:27]} 70. Ra8 {[%emt 0:00:08]} Kh2 {[%emt 0:00:14]} 71. Rg8 {[%emt 0:00:31]} g2 {[%emt 0:00:34]} 72. Rh8+ {[%emt 0:00:04]} Kg1 {[%emt 0:00:06]} 73. Rg8 {[%emt 0:00:05]} Re7+ {[%emt 0:00:40]} 74. Kf3 {[%emt 0:00:09]} Kf1 {[%emt 0:00:32]} 0-1